[Event "Late-Titled-Tuesday-Blitz-June-04-2024"]
[Site "Chess.com"]
[Date "2024.06.04"]
[Round "2"]
[White "Ykow"]
[Black "TheSilmarils"]
[Result "1-0"]
[WhiteElo "2573"]
[BlackElo "2866"]
[TimeControl "180+1"]
[EndTime "14:17:49 PDT"]
[Termination "Ykow won by resignation"]

1. e4 {[%clk 0:03:00.9]} 1... c6 {[%clk 0:02:59.9]} 2. Nf3 {[%clk 0:03:00.7]}
2... d5 {[%clk 0:03:00.8]} 3. d3 {[%clk 0:03:01.6]} 3... g6 {[%clk 0:03:00.6]}
4. e5 {[%clk 0:03:01.2]} 4... c5 {[%clk 0:03:00.2]} 5. Bf4 {[%clk 0:03:01.1]}
5... Bg4 {[%clk 0:03:00]} 6. h3 {[%clk 0:03:01.2]} 6... Bxf3 {[%clk 0:02:59.8]}
7. Qxf3 {[%clk 0:03:02.1]} 7... e6 {[%clk 0:03:00.1]} 8. d4 {[%clk 0:03:00]}
8... cxd4 {[%clk 0:02:57.7]} 9. Bb5+ {[%clk 0:02:58.1]} 9... Nc6 {[%clk
0:02:57.6]} 10. O-O {[%clk 0:02:59]} 10... Qb6 {[%clk 0:02:52.5]} 11. c4 {[%clk
0:02:46.4]} 11... dxc3 {[%clk 0:02:44.5]} 12. Nxc3 {[%clk 0:02:45.8]} 12... Bg7
{[%clk 0:02:40.3]} 13. Bg5 {[%clk 0:02:21.4]} 13... Ne7 {[%clk 0:02:32.4]} 14.
Bf6 {[%clk 0:01:52.4]} 14... O-O {[%clk 0:02:31.1]} 15. Bxg7 {[%clk 0:01:52.5]}
15... Kxg7 {[%clk 0:02:31.2]} 16. Qf6+ {[%clk 0:01:53.4]} 16... Kg8 {[%clk
0:02:31.4]} 17. h4 {[%clk 0:01:51.8]} 17... Nf5 {[%clk 0:02:14.1]} 18. Bxc6
{[%clk 0:01:36.6]} 18... bxc6 {[%clk 0:02:12.8]} 19. g4 {[%clk 0:01:36.8]} 19...
Nd4 {[%clk 0:02:02.6]} 20. h5 {[%clk 0:01:36.7]} 20... Qd8 {[%clk 0:01:59.2]}
21. Qf4 {[%clk 0:01:36.9]} 21... c5 {[%clk 0:01:59.3]} 22. Kg2 {[%clk
0:01:35.4]} 22... Rb8 {[%clk 0:01:46.8]} 23. Qd2 {[%clk 0:01:15.8]} 23... Rb4
{[%clk 0:01:26.5]} 24. Rh1 {[%clk 0:01:14.1]} 24... g5 {[%clk 0:01:25.1]} 25. h6
{[%clk 0:01:07.7]} 25... f5 {[%clk 0:01:18.4]} 26. Rh5 {[%clk 0:01:05.1]} 26...
f4 {[%clk 0:01:12.8]} 27. b3 {[%clk 0:00:50.6]} 27... Kh8 {[%clk 0:01:11.4]} 28.
Rd1 {[%clk 0:00:45.5]} 28... Rg8 {[%clk 0:01:11.4]} 29. f3 {[%clk 0:00:44.9]}
29... Rg6 {[%clk 0:01:11.3]} 30. Ne2 {[%clk 0:00:43.8]} 30... Qb8 {[%clk
0:01:01.7]} 31. Rc1 {[%clk 0:00:38]} 31... Qxe5 {[%clk 0:00:59.5]} 32. Nxd4
{[%clk 0:00:18.8]} 32... Rxd4 {[%clk 0:01:00.3]} 33. Qb2 {[%clk 0:00:17.5]}
33... Qe3 {[%clk 0:00:42.5]} 34. Rxc5 {[%clk 0:00:17.5]} 34... Qd2+ {[%clk
0:00:33.1]} 35. Qxd2 {[%clk 0:00:17.2]} 35... Rxd2+ {[%clk 0:00:34]} 36. Kg1
{[%clk 0:00:17.3]} 36... Rg8 {[%clk 0:00:24.1]} 37. a3 {[%clk 0:00:17.3]} 37...
Rd8 {[%clk 0:00:19.6]} 38. Rxg5 {[%clk 0:00:16.1]} 38... Rg8 {[%clk 0:00:16.6]}
39. Rxg8+ {[%clk 0:00:13.7]} 39... Kxg8 {[%clk 0:00:17.5]} 40. Rc7 {[%clk
0:00:14.3]} 40... a5 {[%clk 0:00:17]} 41. Rg7+ {[%clk 0:00:14]} 41... Kf8 {[%clk
0:00:17.6]} 42. Rxh7 {[%clk 0:00:14.2]} 42... e5 {[%clk 0:00:16.2]} 43. Rd7
{[%clk 0:00:12.2]} 43... Kg8 {[%clk 0:00:16.6]} 44. g5 {[%clk 0:00:12.7]} 44...
e4 {[%clk 0:00:15.5]} 45. g6 {[%clk 0:00:13.2]} 45... Kf8 {[%clk 0:00:15.1]} 46.
h7 {[%clk 0:00:13.1]} 46... Ke8 {[%clk 0:00:14.7]} 47. Ra7 {[%clk 0:00:13.7]}
47... Rd1+ {[%clk 0:00:12.2]} 48. Kh2 {[%clk 0:00:14]} 1-0

[Event "Late-Titled-Tuesday-Blitz-June-04-2024"]
[Site "Chess.com"]
[Date "2024.06.04"]
[Round "2"]
[White "rasmussvane"]
[Black "nabukatnezarr"]
[Result "1-0"]
[WhiteElo "2929"]
[BlackElo "2585"]
[TimeControl "180+1"]
[EndTime "14:17:50 PDT"]
[Termination "rasmussvane won on time"]

1. Nf3 {[%clk 0:02:58]} 1... Nf6 {[%clk 0:02:59.3]} 2. g3 {[%clk 0:02:56.9]}
2... b6 {[%clk 0:02:53.2]} 3. Bg2 {[%clk 0:02:55.9]} 3... Bb7 {[%clk 0:02:54.1]}
4. O-O {[%clk 0:02:56.1]} 4... g6 {[%clk 0:02:53.3]} 5. d4 {[%clk 0:02:54.3]}
5... Bg7 {[%clk 0:02:53.6]} 6. c4 {[%clk 0:02:54]} 6... O-O {[%clk 0:02:54.2]}
7. Re1 {[%clk 0:02:52.6]} 7... d6 {[%clk 0:02:49.5]} 8. Qc2 {[%clk 0:02:47.3]}
8... Be4 {[%clk 0:02:36.7]} 9. Qd2 {[%clk 0:02:36.5]} 9... c5 {[%clk 0:02:37.6]}
10. Nc3 {[%clk 0:02:35.3]} 10... Bb7 {[%clk 0:02:33.1]} 11. d5 {[%clk
0:02:33.9]} 11... Re8 {[%clk 0:02:33.7]} 12. e4 {[%clk 0:02:33.8]} 12... e6
{[%clk 0:02:33.9]} 13. Qc2 {[%clk 0:01:53.4]} 13... exd5 {[%clk 0:02:28.7]} 14.
cxd5 {[%clk 0:01:54.3]} 14... Na6 {[%clk 0:02:28.4]} 15. Bf4 {[%clk 0:01:50.3]}
15... Nc7 {[%clk 0:02:26]} 16. a4 {[%clk 0:01:48.9]} 16... a6 {[%clk 0:02:17.5]}
17. Bf1 {[%clk 0:01:25.5]} 17... Nh5 {[%clk 0:02:05.1]} 18. Bg5 {[%clk
0:01:23.7]} 18... Qd7 {[%clk 0:02:05.6]} 19. Qb3 {[%clk 0:01:19.1]} 19... Rab8
{[%clk 0:01:56.3]} 20. Rad1 {[%clk 0:01:03.8]} 20... Ba8 {[%clk 0:01:56.4]} 21.
Bg2 {[%clk 0:01:00.1]} 21... b5 {[%clk 0:01:55.5]} 22. axb5 {[%clk 0:01:00.1]}
22... axb5 {[%clk 0:01:30.9]} 23. Qc2 {[%clk 0:00:50.4]} 23... b4 {[%clk
0:01:30.6]} 24. Nb1 {[%clk 0:00:46.8]} 24... b3 {[%clk 0:01:30.7]} 25. Qc1
{[%clk 0:00:45.7]} 25... Nb5 {[%clk 0:01:19.2]} 26. Bh6 {[%clk 0:00:45.4]} 26...
Bh8 {[%clk 0:01:17.1]} 27. Nbd2 {[%clk 0:00:40.4]} 27... Nd4 {[%clk 0:01:08.4]}
28. Nxd4 {[%clk 0:00:40.7]} 28... Bxd4 {[%clk 0:01:08.8]} 29. Be3 {[%clk
0:00:36]} 29... Bg7 {[%clk 0:01:04.8]} 30. Nc4 {[%clk 0:00:31.8]} 30... Rb4
{[%clk 0:01:00.5]} 31. Bd2 {[%clk 0:00:28.9]} 31... Rbb8 {[%clk 0:00:56.8]} 32.
Bc3 {[%clk 0:00:29]} 32... Bb7 {[%clk 0:00:33.8]} 33. e5 {[%clk 0:00:24.2]}
33... dxe5 {[%clk 0:00:30.2]} 34. Nxe5 {[%clk 0:00:25.1]} 34... Bxe5 {[%clk
0:00:19.3]} 35. Bxe5 {[%clk 0:00:23.7]} 35... Rbc8 {[%clk 0:00:19.9]} 36. h3
{[%clk 0:00:20.8]} 36... c4 {[%clk 0:00:18.6]} 37. g4 {[%clk 0:00:20.8]} 37...
Ng7 {[%clk 0:00:18.2]} 38. Qh6 {[%clk 0:00:15.2]} 38... Rxe5 {[%clk 0:00:06.9]}
39. Rxe5 {[%clk 0:00:16.1]} 39... Qd6 {[%clk 0:00:05.9]} 40. Qe3 {[%clk
0:00:13.8]} 40... Ba6 {[%clk 0:00:03.7]} 41. Qc3 {[%clk 0:00:12.8]} 41... Qc5
{[%clk 0:00:02.9]} 42. d6 {[%clk 0:00:11.9]} 42... Qb6 {[%clk 0:00:03.5]} 43. d7
{[%clk 0:00:11.6]} 43... Rd8 {[%clk 0:00:04.2]} 44. Re7 {[%clk 0:00:09.4]} 44...
Qc5 {[%clk 0:00:03.6]} 45. Qf6 {[%clk 0:00:09.2]} 1-0

[Event "Late-Titled-Tuesday-Blitz-June-04-2024"]
[Site "Chess.com"]
[Date "2024.06.04"]
[Round "2"]
[White "gmcorrales"]
[Black "Smoking_Crow"]
[Result "1-0"]
[WhiteElo "2894"]
[BlackElo "2560"]
[TimeControl "180+1"]
[EndTime "14:17:52 PDT"]
[Termination "gmcorrales won by checkmate"]

1. d4 {[%clk 0:02:50.9]} 1... Nf6 {[%clk 0:02:57.4]} 2. c4 {[%clk 0:02:42.4]}
2... e6 {[%clk 0:02:55.7]} 3. Nc3 {[%clk 0:02:42]} 3... d5 {[%clk 0:02:55.6]} 4.
cxd5 {[%clk 0:02:32.7]} 4... exd5 {[%clk 0:02:56.5]} 5. Bf4 {[%clk 0:02:32.9]}
5... Bd6 {[%clk 0:02:53.5]} 6. e3 {[%clk 0:02:26.9]} 6... O-O {[%clk 0:02:52.9]}
7. Bd3 {[%clk 0:02:04.4]} 7... Bxf4 {[%clk 0:02:52.1]} 8. exf4 {[%clk
0:02:05.3]} 8... Re8+ {[%clk 0:02:51.7]} 9. Nge2 {[%clk 0:02:01.7]} 9... Nbd7
{[%clk 0:02:51.1]} 10. f3 {[%clk 0:01:57]} 10... Nb6 {[%clk 0:02:50.9]} 11. b3
{[%clk 0:01:48.5]} 11... Qd6 {[%clk 0:02:50.4]} 12. Kf2 {[%clk 0:01:19.9]} 12...
c5 {[%clk 0:02:43.7]} 13. Nb5 {[%clk 0:01:17.2]} 13... Qe7 {[%clk 0:02:43.4]}
14. Qd2 {[%clk 0:01:11.8]} 14... c4 {[%clk 0:02:41.1]} 15. Bc2 {[%clk
0:01:10.6]} 15... Bd7 {[%clk 0:02:32.6]} 16. Nbc3 {[%clk 0:01:10.1]} 16... Rac8
{[%clk 0:02:31.8]} 17. Rhe1 {[%clk 0:01:07.9]} 17... Qb4 {[%clk 0:02:15.5]} 18.
a3 {[%clk 0:01:00.3]} 18... Qd6 {[%clk 0:02:13]} 19. b4 {[%clk 0:00:59.6]} 19...
Rcd8 {[%clk 0:02:10.2]} 20. g4 {[%clk 0:00:57.9]} 20... Nc8 {[%clk 0:02:08.7]}
21. Ng3 {[%clk 0:00:56.9]} 21... Qb8 {[%clk 0:01:52.8]} 22. Re5 {[%clk
0:00:56.8]} 22... Bxg4 {[%clk 0:01:11.9]} 23. Rxe8+ {[%clk 0:00:52.2]} 23...
Rxe8 {[%clk 0:01:12.8]} 24. fxg4 {[%clk 0:00:52.7]} 24... Nxg4+ {[%clk
0:01:12.6]} 25. Kf3 {[%clk 0:00:52.7]} 25... Nf6 {[%clk 0:01:07.5]} 26. Re1
{[%clk 0:00:51.9]} 26... Rd8 {[%clk 0:01:07.6]} 27. Nf5 {[%clk 0:00:44.2]} 27...
g6 {[%clk 0:01:03.6]} 28. Qg2 {[%clk 0:00:41.6]} 28... Nd6 {[%clk 0:00:54.3]}
29. Qg5 {[%clk 0:00:24.5]} 29... Nxf5 {[%clk 0:00:45.7]} 30. Bxf5 {[%clk
0:00:24.7]} 30... Nh5 {[%clk 0:00:43.1]} 31. Bc2 {[%clk 0:00:21.6]} 31... f6
{[%clk 0:00:34.2]} 32. Qg4 {[%clk 0:00:21.3]} 32... Kh8 {[%clk 0:00:31.2]} 33.
Re6 {[%clk 0:00:13.8]} 33... a5 {[%clk 0:00:27.8]} 34. Ne2 {[%clk 0:00:12.8]}
34... axb4 {[%clk 0:00:27.4]} 35. axb4 {[%clk 0:00:13.7]} 35... c3 {[%clk
0:00:27]} 36. Bxg6 {[%clk 0:00:13.9]} 36... hxg6 {[%clk 0:00:21.8]} 37. Qxg6
{[%clk 0:00:14.8]} 37... Qc7 {[%clk 0:00:13]} 38. Qxh5+ {[%clk 0:00:14.6]} 38...
Kg7 {[%clk 0:00:13.5]} 39. Qg4+ {[%clk 0:00:13.1]} 39... Kf7 {[%clk 0:00:13.7]}
40. f5 {[%clk 0:00:13.4]} 40... c2 {[%clk 0:00:09.7]} 41. Qg6+ {[%clk
0:00:13.5]} 41... Kf8 {[%clk 0:00:10]} 42. Rxf6+ {[%clk 0:00:13.9]} 42... Ke7
{[%clk 0:00:10]} 43. Qf7# {[%clk 0:00:13.9]} 1-0

[Event "Late-Titled-Tuesday-Blitz-June-04-2024"]
[Site "Chess.com"]
[Date "2024.06.04"]
[Round "2"]
[White "Hasangatin_Ramil"]
[Black "Nick12772"]
[Result "1/2-1/2"]
[WhiteElo "2720"]
[BlackElo "2394"]
[TimeControl "180+1"]
[EndTime "14:17:56 PDT"]
[Termination "Game drawn - insufficient material"]

1. e4 {[%clk 0:03:00.9]} 1... e6 {[%clk 0:02:59.7]} 2. d3 {[%clk 0:03:00.4]}
2... d5 {[%clk 0:03:00.6]} 3. Qe2 {[%clk 0:03:00.8]} 3... Nf6 {[%clk 0:02:50.7]}
4. Nf3 {[%clk 0:03:00.7]} 4... Nc6 {[%clk 0:02:50.2]} 5. g3 {[%clk 0:03:01]}
5... dxe4 {[%clk 0:02:49.4]} 6. dxe4 {[%clk 0:03:01.9]} 6... e5 {[%clk
0:02:49.1]} 7. Bg2 {[%clk 0:03:02.2]} 7... Bc5 {[%clk 0:02:48.2]} 8. c3 {[%clk
0:03:02.4]} 8... a5 {[%clk 0:02:47.8]} 9. O-O {[%clk 0:03:02.7]} 9... O-O {[%clk
0:02:48.2]} 10. Nbd2 {[%clk 0:03:02]} 10... Qe7 {[%clk 0:02:47.1]} 11. Nh4
{[%clk 0:03:00.2]} 11... Bg4 {[%clk 0:02:41.5]} 12. Bf3 {[%clk 0:03:00.3]} 12...
Bh3 {[%clk 0:02:28.1]} 13. Re1 {[%clk 0:02:59.6]} 13... Rad8 {[%clk 0:02:16.8]}
14. Nf5 {[%clk 0:02:55.5]} 14... Bxf5 {[%clk 0:02:14.7]} 15. exf5 {[%clk
0:02:56.4]} 15... Rfe8 {[%clk 0:02:09.8]} 16. Ne4 {[%clk 0:02:55.7]} 16... Nxe4
{[%clk 0:02:08.7]} 17. Bxe4 {[%clk 0:02:55.6]} 17... f6 {[%clk 0:02:01.2]} 18.
Qb5 {[%clk 0:02:44.5]} 18... Bb6 {[%clk 0:01:38.6]} 19. Bxc6 {[%clk 0:02:33.6]}
19... bxc6 {[%clk 0:01:39.5]} 20. Qxc6 {[%clk 0:02:34.3]} 20... Rd6 {[%clk
0:01:38.1]} 21. Qe4 {[%clk 0:02:30.8]} 21... Red8 {[%clk 0:01:36.3]} 22. Be3
{[%clk 0:02:25.4]} 22... Bxe3 {[%clk 0:01:34.4]} 23. Qxe3 {[%clk 0:02:23.3]}
23... Rd2 {[%clk 0:01:33.4]} 24. Re2 {[%clk 0:02:23.8]} 24... Qd7 {[%clk
0:01:26.1]} 25. Rae1 {[%clk 0:01:43.2]} 25... Rxe2 {[%clk 0:01:23.9]} 26. Qxe2
{[%clk 0:01:44.1]} 26... Qxf5 {[%clk 0:01:22.3]} 27. Qc4+ {[%clk 0:01:44.1]}
27... Kh8 {[%clk 0:01:21.2]} 28. Qxc7 {[%clk 0:01:43.9]} 28... Ra8 {[%clk
0:01:11.5]} 29. Rd1 {[%clk 0:01:27.6]} 29... Qc8 {[%clk 0:00:57.6]} 30. Qxc8+
{[%clk 0:01:26.8]} 30... Rxc8 {[%clk 0:00:58.5]} 31. c4 {[%clk 0:01:21.9]} 31...
h6 {[%clk 0:00:54.4]} 32. b3 {[%clk 0:01:22.1]} 32... Kh7 {[%clk 0:00:42]} 33.
Rd5 {[%clk 0:01:21.9]} 33... a4 {[%clk 0:00:41.6]} 34. c5 {[%clk 0:01:22]} 34...
axb3 {[%clk 0:00:36.2]} 35. axb3 {[%clk 0:01:21.6]} 35... Rb8 {[%clk 0:00:28.2]}
36. Rd3 {[%clk 0:01:21.1]} 36... Kg6 {[%clk 0:00:21.2]} 37. c6 {[%clk
0:01:20.9]} 37... Kf7 {[%clk 0:00:16.8]} 38. c7 {[%clk 0:01:20.3]} 38... Rc8
{[%clk 0:00:17.1]} 39. Rc3 {[%clk 0:01:20.7]} 39... Ke7 {[%clk 0:00:17.3]} 40.
Kg2 {[%clk 0:01:09.1]} 40... Kd7 {[%clk 0:00:17.5]} 41. Kf3 {[%clk 0:01:05.7]}
41... Rxc7 {[%clk 0:00:17.9]} 42. Rxc7+ {[%clk 0:01:04.8]} 42... Kxc7 {[%clk
0:00:18.8]} 43. Ke4 {[%clk 0:01:04.5]} 43... g6 {[%clk 0:00:17.4]} 44. f4 {[%clk
0:01:00.3]} 44... exf4 {[%clk 0:00:15]} 45. Kxf4 {[%clk 0:00:52.4]} 45... Kc6
{[%clk 0:00:12.4]} 46. h4 {[%clk 0:00:44.9]} 46... h5 {[%clk 0:00:05.6]} 47. Ke4
{[%clk 0:00:41.7]} 47... Kc5 {[%clk 0:00:04]} 48. Kd3 {[%clk 0:00:39.5]} 48...
Kb4 {[%clk 0:00:03.5]} 49. Kc2 {[%clk 0:00:39.3]} 49... g5 {[%clk 0:00:03.9]}
50. Kb2 {[%clk 0:00:34.7]} 50... gxh4 {[%clk 0:00:04.4]} 51. gxh4 {[%clk
0:00:35.3]} 51... f5 {[%clk 0:00:05.3]} 52. Kc2 {[%clk 0:00:35.6]} 52... f4
{[%clk 0:00:05.2]} 53. Kd3 {[%clk 0:00:35.9]} 53... Kxb3 {[%clk 0:00:05.6]} 54.
Ke4 {[%clk 0:00:36.6]} 54... Kc4 {[%clk 0:00:06.3]} 55. Kxf4 {[%clk 0:00:37.2]}
55... Kd5 {[%clk 0:00:06.8]} 56. Kg5 {[%clk 0:00:38.1]} 56... Ke6 {[%clk
0:00:06.8]} 57. Kxh5 {[%clk 0:00:39]} 57... Kf7 {[%clk 0:00:07.1]} 58. Kg4
{[%clk 0:00:38.2]} 58... Kg8 {[%clk 0:00:08]} 59. Kf3 {[%clk 0:00:38.4]} 59...
Kh8 {[%clk 0:00:08.9]} 60. Ke2 {[%clk 0:00:38.7]} 60... Kg8 {[%clk 0:00:09.8]}
61. Kd1 {[%clk 0:00:39]} 61... Kh8 {[%clk 0:00:10.7]} 62. Kc1 {[%clk 0:00:39.4]}
62... Kg8 {[%clk 0:00:11.6]} 63. Kb1 {[%clk 0:00:39.9]} 63... Kh8 {[%clk
0:00:12.5]} 64. Ka1 {[%clk 0:00:40.4]} 64... Kh7 {[%clk 0:00:13.4]} 65. Ka2
{[%clk 0:00:40.7]} 65... Kh6 {[%clk 0:00:14.3]} 66. Ka3 {[%clk 0:00:41.1]} 66...
Kh5 {[%clk 0:00:15.2]} 67. Ka4 {[%clk 0:00:41.6]} 67... Kxh4 {[%clk 0:00:16.1]}
1/2-1/2

[Event "Late-Titled-Tuesday-Blitz-June-04-2024"]
[Site "Chess.com"]
[Date "2024.06.04"]
[Round "2"]
[White "jlf287"]
[Black "PawnEatingZombie"]
[Result "1-0"]
[WhiteElo "2509"]
[BlackElo "2267"]
[TimeControl "180+1"]
[EndTime "14:17:58 PDT"]
[Termination "jlf287 won on time"]

1. e4 {[%clk 0:03:00.9]} 1... c5 {[%clk 0:02:59.5]} 2. Nf3 {[%clk 0:03:00.7]}
2... Nc6 {[%clk 0:02:59.9]} 3. Bb5 {[%clk 0:02:59.5]} 3... Nf6 {[%clk
0:02:57.8]} 4. Bxc6 {[%clk 0:02:58.5]} 4... dxc6 {[%clk 0:02:56.8]} 5. d3 {[%clk
0:02:58.6]} 5... Bg4 {[%clk 0:02:55.5]} 6. h3 {[%clk 0:02:56.7]} 6... Bh5 {[%clk
0:02:56]} 7. Bf4 {[%clk 0:02:52.9]} 7... Nd7 {[%clk 0:02:52]} 8. g4 {[%clk
0:02:48.1]} 8... Bg6 {[%clk 0:02:51.3]} 9. Nbd2 {[%clk 0:02:46.7]} 9... Qb6
{[%clk 0:02:50.2]} 10. Nc4 {[%clk 0:02:45.1]} 10... Qa6 {[%clk 0:02:49.2]} 11.
a4 {[%clk 0:02:33.2]} 11... f6 {[%clk 0:02:48.4]} 12. e5 {[%clk 0:02:30.2]}
12... e6 {[%clk 0:02:25.5]} 13. O-O {[%clk 0:02:24.3]} 13... O-O-O {[%clk
0:02:19.1]} 14. Re1 {[%clk 0:02:13.6]} 14... Bf7 {[%clk 0:02:08.3]} 15. Nfd2
{[%clk 0:02:04.8]} 15... h5 {[%clk 0:01:53.7]} 16. Ne4 {[%clk 0:02:02]} 16...
Nxe5 {[%clk 0:01:37.8]} 17. Bxe5 {[%clk 0:01:37.2]} 17... fxe5 {[%clk
0:01:33.8]} 18. Nxe5 {[%clk 0:01:38.1]} 18... Be8 {[%clk 0:01:28.9]} 19. a5
{[%clk 0:01:33.3]} 19... Be7 {[%clk 0:01:06.4]} 20. b3 {[%clk 0:01:25.2]} 20...
Bf6 {[%clk 0:00:57.1]} 21. f4 {[%clk 0:01:25.3]} 21... Be7 {[%clk 0:00:55.5]}
22. g5 {[%clk 0:01:23.5]} 22... Qb5 {[%clk 0:00:48.8]} 23. Qc1 {[%clk
0:00:55.2]} 23... Bd6 {[%clk 0:00:38]} 24. Nc4 {[%clk 0:00:50.6]} 24... Bc7
{[%clk 0:00:35.3]} 25. Nc3 {[%clk 0:00:47]} 25... Qa6 {[%clk 0:00:34.4]} 26.
Rxe6 {[%clk 0:00:40.9]} 26... Bd7 {[%clk 0:00:34.4]} 27. Re7 {[%clk 0:00:39.4]}
27... Bxh3 {[%clk 0:00:33.8]} 28. Qe3 {[%clk 0:00:38.5]} 28... Bg4 {[%clk
0:00:31.9]} 29. Re1 {[%clk 0:00:33]} 29... b6 {[%clk 0:00:17.1]} 30. Rxc7+
{[%clk 0:00:20.1]} 30... Kxc7 {[%clk 0:00:16.9]} 31. Qe5+ {[%clk 0:00:20.7]}
31... Kc8 {[%clk 0:00:11.1]} 32. f5 {[%clk 0:00:15.6]} 32... Rhe8 {[%clk
0:00:09.4]} 33. Nd6+ {[%clk 0:00:14]} 33... Rxd6 {[%clk 0:00:09.1]} 34. Qxe8+
{[%clk 0:00:14.2]} 34... Rd8 {[%clk 0:00:09.3]} 35. Qxc6+ {[%clk 0:00:13.9]}
35... Kb8 {[%clk 0:00:09.7]} 36. Re7 {[%clk 0:00:10.3]} 36... Rc8 {[%clk
0:00:06.9]} 37. Qd6+ {[%clk 0:00:10.5]} 37... Ka8 {[%clk 0:00:07.2]} 38. Qd5+
{[%clk 0:00:07.8]} 38... Kb8 {[%clk 0:00:07]} 39. Qe5+ {[%clk 0:00:07]} 39...
Ka8 {[%clk 0:00:07]} 40. Nd5 {[%clk 0:00:06.7]} 40... Qxa5 {[%clk 0:00:05.1]}
41. Nc7+ {[%clk 0:00:05.5]} 41... Rxc7 {[%clk 0:00:03.8]} 42. Rxc7 {[%clk
0:00:03.5]} 1-0

[Event "Late-Titled-Tuesday-Blitz-June-04-2024"]
[Site "Chess.com"]
[Date "2024.06.04"]
[Round "2"]
[White "MuhittinBuker"]
[Black "StoreySniper"]
[Result "0-1"]
[WhiteElo "2224"]
[BlackElo "2483"]
[TimeControl "180+1"]
[EndTime "14:18:03 PDT"]
[Termination "StoreySniper won by resignation"]

1. d4 {[%clk 0:03:00.9]} 1... g6 {[%clk 0:02:47.1]} 2. c4 {[%clk 0:02:57.6]}
2... Bg7 {[%clk 0:02:47.6]} 3. Nc3 {[%clk 0:02:57.8]} 3... c5 {[%clk 0:02:48]}
4. e3 {[%clk 0:02:56.8]} 4... Nh6 {[%clk 0:02:47.7]} 5. Nf3 {[%clk 0:02:56.3]}
5... d6 {[%clk 0:02:44.4]} 6. Be2 {[%clk 0:02:56.2]} 6... Nc6 {[%clk 0:02:44.6]}
7. O-O {[%clk 0:02:54.7]} 7... O-O {[%clk 0:02:44.8]} 8. d5 {[%clk 0:02:46.1]}
8... Nb8 {[%clk 0:02:41.9]} 9. Qc2 {[%clk 0:02:45]} 9... Na6 {[%clk 0:02:40.9]}
10. a3 {[%clk 0:02:44.5]} 10... Nc7 {[%clk 0:02:40.7]} 11. e4 {[%clk 0:02:44.8]}
11... Ng4 {[%clk 0:02:39.4]} 12. h3 {[%clk 0:02:44.1]} 12... Ne5 {[%clk
0:02:39.3]} 13. Nxe5 {[%clk 0:02:44.7]} 13... Bxe5 {[%clk 0:02:39]} 14. Be3
{[%clk 0:02:42.4]} 14... a6 {[%clk 0:02:36.3]} 15. f4 {[%clk 0:02:42.3]} 15...
Bg7 {[%clk 0:02:35.4]} 16. a4 {[%clk 0:02:42.5]} 16... e6 {[%clk 0:02:32.7]} 17.
Qd2 {[%clk 0:02:37.4]} 17... exd5 {[%clk 0:02:32.8]} 18. cxd5 {[%clk 0:02:37.1]}
18... Re8 {[%clk 0:02:25.3]} 19. e5 {[%clk 0:02:36.4]} 19... b6 {[%clk
0:02:19.5]} 20. exd6 {[%clk 0:02:31.9]} 20... Rxe3 {[%clk 0:02:17.3]} 21. dxc7
{[%clk 0:02:29.3]} 21... Qxc7 {[%clk 0:02:17.2]} 22. Kh1 {[%clk 0:02:27.2]}
22... Bd4 {[%clk 0:02:12.8]} 23. Bf3 {[%clk 0:02:26.4]} 23... Qxf4 {[%clk
0:02:06.2]} 24. d6 {[%clk 0:02:22.6]} 24... Be5 {[%clk 0:02:05.3]} 25. g3 {[%clk
0:01:49.8]} 25... Qxg3 {[%clk 0:01:18.7]} 26. Qg2 {[%clk 0:01:48.9]} 26... Rxf3
{[%clk 0:00:56.2]} 27. Rxf3 {[%clk 0:01:42.4]} 27... Qxg2+ {[%clk 0:00:55.8]}
28. Kxg2 {[%clk 0:01:41.7]} 28... Bb7 {[%clk 0:00:56.3]} 29. Kf2 {[%clk
0:01:39.2]} 29... Bxf3 {[%clk 0:00:55.4]} 30. Kxf3 {[%clk 0:01:39.4]} 30... Bxd6
{[%clk 0:00:47.4]} 31. Rd1 {[%clk 0:01:39.9]} 31... Be5 {[%clk 0:00:45.1]} 32.
Nd5 {[%clk 0:01:37.7]} 32... b5 {[%clk 0:00:37.3]} 33. axb5 {[%clk 0:01:36]}
33... axb5 {[%clk 0:00:36.8]} 34. b3 {[%clk 0:01:33.6]} 34... Ra3 {[%clk
0:00:35.2]} 35. Ke4 {[%clk 0:01:28.9]} 35... f6 {[%clk 0:00:30]} 36. Rc1 {[%clk
0:01:21.7]} 36... Rxb3 {[%clk 0:00:21.1]} 37. Rxc5 {[%clk 0:01:21.3]} 37... Rxh3
{[%clk 0:00:19.8]} 38. Rxb5 {[%clk 0:01:20.7]} 38... Rh4+ {[%clk 0:00:19.6]} 39.
Ke3 {[%clk 0:01:17.6]} 39... Kg7 {[%clk 0:00:15.1]} 40. Rb7+ {[%clk 0:01:15.5]}
40... Kh6 {[%clk 0:00:15.3]} 41. Rf7 {[%clk 0:01:10.7]} 41... Kg5 {[%clk
0:00:13.6]} 42. Kf3 {[%clk 0:01:06]} 42... Rh3+ {[%clk 0:00:13.5]} 43. Kg2
{[%clk 0:01:06.1]} 43... Rd3 {[%clk 0:00:12.7]} 44. Nb4 {[%clk 0:00:59.9]} 44...
Rd2+ {[%clk 0:00:11.8]} 45. Kf3 {[%clk 0:01:00]} 45... h6 {[%clk 0:00:11.5]} 46.
Nc6 {[%clk 0:00:59.4]} 46... h5 {[%clk 0:00:10.2]} 47. Nxe5 {[%clk 0:00:58.6]}
47... fxe5 {[%clk 0:00:08.5]} 48. Rh7 {[%clk 0:00:58.6]} 48... Rd3+ {[%clk
0:00:08.3]} 49. Ke4 {[%clk 0:00:58.2]} 49... Rg3 {[%clk 0:00:08.2]} 50. Kxe5
{[%clk 0:00:57.2]} 50... h4 {[%clk 0:00:08.6]} 51. Ke4 {[%clk 0:00:56.5]} 51...
Kg4 {[%clk 0:00:07.9]} 52. Rh6 {[%clk 0:00:54.3]} 52... g5 {[%clk 0:00:08.3]}
53. Rh8 {[%clk 0:00:50.5]} 53... Rb3 {[%clk 0:00:08.4]} 54. Rh6 {[%clk
0:00:48.7]} 54... h3 {[%clk 0:00:08.6]} 55. Rh7 {[%clk 0:00:48.8]} 55... Kg3
{[%clk 0:00:06.8]} 56. Kf5 {[%clk 0:00:49.2]} 56... g4 {[%clk 0:00:06.8]} 57.
Rg7 {[%clk 0:00:47.7]} 57... Rb5+ {[%clk 0:00:07.4]} 58. Ke4 {[%clk 0:00:47.6]}
58... h2 {[%clk 0:00:07.8]} 59. Rh7 {[%clk 0:00:47.2]} 59... Kg2 {[%clk
0:00:07.2]} 60. Kf4 {[%clk 0:00:45.3]} 60... g3 {[%clk 0:00:07]} 61. Kg4 {[%clk
0:00:44.5]} 61... Rb4+ {[%clk 0:00:07.3]} 62. Kf5 {[%clk 0:00:44.1]} 62... h1=Q
{[%clk 0:00:07.7]} 63. Rxh1 {[%clk 0:00:42.7]} 63... Kxh1 {[%clk 0:00:08.6]} 64.
Ke5 {[%clk 0:00:42.5]} 64... g2 {[%clk 0:00:08.9]} 65. Kd5 {[%clk 0:00:43.3]}
65... g1=Q {[%clk 0:00:09.3]} 66. Kc6 {[%clk 0:00:42]} 66... Qd4 {[%clk
0:00:09.1]} 0-1